bitfinex-derivatives/quotes_ETHF0:USTF0_20220106
["timestamp","ask_amount","ask_price","bid_price","bid_amount"]
[1641501087590,0.384472,3438.6,3438.0,1.94459801]
[1641501087991,0.384472,3438.6,3438.1,0.8734906]
[1641501088192,0.384472,3438.6,3438.2,0.397182]
[1641501088594,0.384472,3438.6,3438.3,2.00479]
[1641501089094,0.384472,3438.6,3438.4,0.397182]
[1641501089493,0.459982,3438.5,3438.4,0.397182]
[1641501089694,0.384472,3438.6,3438.4,0.397182]
[1641501090496,2.00479,3439.1,3438.4,0.397182]
[1641501090696,2.00479,3439.1,3438.5,0.25931698]
[1641501090894,0.384472,3439.0,3438.5,0.25931698]
[1641501091096,0.79753888,3438.4,3438.3,2.00479]
[1641501091495,1.45388614,3438.8,3438.3,2.00479]
[1641501091697,1.85106814,3438.8,3438.7,1.84478634]
[1641501091996,14.80105014,3438.8,3438.7,1.84478634]
[1641501092197,13.347164,3438.8,3438.7,1.84478634]
[1641501092398,14.847164,3438.8,3438.2,3.07815412]
[1641501092596,16.49958,3438.3,3437.9,3.38596953]
[1641501092797,0.781654,3438.2,3438.0,3.07475369]
[1641501092998,1.241636,3438.2,3438.0,3.07475369]
[1641501094296,1.241636,3438.2,3437.8,3.38596953]
[1641501094495,1.241636,3438.2,3437.4,2.00479]
[1641501094496,2.00479,3437.9,3437.4,2.00479]
[1641501095498,0.397182,3437.8,3437.4,2.00479]
[1641501097602,1.45438083,3437.6,3437.4,2.00479]
[1641501098004,0.384472,3437.5,3437.4,2.00479]
[1641501098203,1.45438083,3437.6,3437.4,2.00479]
[1641501098403,1.45438083,3437.6,3437.4,2.55959]
[1641501098604,2.00479,3438.8,3437.5,2.00479]
[1641501098807,2.00479,3438.8,3437.5,2.401972]
[1641501099204,13.4574026,3438.7,3437.5,2.401972]
[1641501099405,0.9674026,3438.7,3437.6,1.49990439]
[1641501099606,2.00479,3438.8,3437.8,1.49990439]
[1641501100305,2.00479,3438.8,3437.9,1.3373972]
[1641501100707,2.00479,3438.8,3438.3,2.00479]
[1641501100909,0.384472,3438.7,3438.4,0.397182]
[1641501101109,0.459982,3438.6,3438.4,0.397182]
[1641501101510,1.45443799,3438.5,3438.4,0.397182]
[1641501101910,0.384472,3438.7,3438.4,0.397182]
[1641501102109,0.459982,3438.6,3438.4,0.397182]
[1641501102309,0.384472,3438.7,3438.4,0.397182]
[1641501102509,0.384472,3438.7,3438.3,1.82901573]
[1641501103010,1.45443799,3438.6,3438.3,1.82901573]
[1641501103408,1.45443799,3438.4,3438.3,1.82901573]
[1641501103609,1.45443799,3438.4,3438.3,0.94781573]
[1641501104409,1.91441999,3438.4,3438.3,0.94781573]
[1641501105211,0.459982,3438.4,3438.3,0.94781573]
[1641501105412,1.45443799,3438.5,3438.3,0.94781573]
[1641501105612,1.91441999,3438.5,3438.3,0.94781573]
[1641501106212,1.45443799,3438.4,3438.3,0.94781573]
[1641501106913,1.45443799,3438.4,3437.9,4.41223148]
[1641501107214,1.45443799,3438.4,3438.0,3.07483428]
[1641501108215,2.90787278,3438.6,3438.0,3.07483428]
[1641501108616,1.45443799,3438.5,3438.0,3.07483428]
[1641501108816,1.45443799,3438.5,3438.0,5.07962428]
[1641501109316,2.90787278,3438.6,3438.0,5.07962428]
[1641501110117,1.45443799,3438.5,3438.0,5.07962428]
[1641501110518,1.45443799,3438.5,3438.0,2.00479]
[1641501111220,1.45443799,3438.5,3438.0,5.07962428]
[1641501112218,1.45443799,3438.5,3438.1,0.19962636]
[1641501112418,1.01971186,3438.6,3438.1,0.19962636]
[1641501112618,1.45443799,3438.4,3438.1,0.19962636]
[1641501113319,1.45443799,3438.5,3438.1,0.19962636]
[1641501113920,1.45443799,3438.5,3438.2,2.45976597]
[1641501114119,0.459982,3438.4,3438.2,2.45976597]
[1641501114320,1.41689386,3438.6,3438.2,2.45976597]
[1641501114819,1.45443799,3438.5,3438.2,2.45976597]
[1641501115220,1.01971186,3438.6,3438.2,2.45976597]
[1641501115420,1.01971186,3438.6,3438.2,3.23456597]
[1641501115622,1.45443799,3438.7,3438.2,3.23456597]
[1641501116022,1.45443799,3438.5,3438.2,3.23456597]
[1641501116222,1.45443799,3438.5,3438.4,2.45976597]
[1641501116824,1.91441999,3438.5,3438.4,2.45976597]
[1641501117023,1.45443799,3438.5,3438.4,2.45976597]
[1641501117523,1.45443799,3438.5,3438.3,2.45976597]
[1641501118626,3.45866478,3438.8,3438.3,2.45976597]
[1641501118824,1.45443799,3438.5,3438.3,2.45976597]
[1641501119122,1.45443799,3438.5,3438.4,0.13030277]
[1641501119528,1.45443799,3438.5,3438.4,2.59006874]
[1641501120525,1.45443799,3438.5,3438.4,2.7896951]
[1641501122527,1.45443799,3438.5,3438.4,0.32992913]
[1641501124431,1.91441999,3438.5,3438.4,0.32992913]
[1641501127533,14.40441999,3438.5,3438.4,0.32992913]
[1641501127732,14.40441999,3438.5,3438.0,2.45987062]
[1641501127934,1.45443799,3438.1,3438.0,2.45987062]
[1641501128132,15.15711999,3438.1,3438.0,2.45987062]
[1641501128332,15.55430199,3438.1,3438.0,2.59061413]
[1641501128934,17.55909199,3438.1,3438.0,0.13074351]
[1641501129433,17.55909199,3438.1,3437.7,0.13074351]
[1641501129637,17.55909199,3438.1,3438.0,0.13074351]
[1641501129833,17.55909199,3438.1,3437.8,0.13074351]
[1641501130034,1.45443799,3437.9,3437.4,2.45987062]
[1641501130236,1.45443799,3437.7,3437.4,2.45987062]
[1641501130436,13.94443799,3437.7,3437.4,2.45987062]
[1641501130636,12.49,3437.7,3437.1,2.45987062]
[1641501130834,5.46401799,3437.2,3437.1,2.45987062]
[1641501131039,18.57651799,3437.2,3437.1,2.45987062]
[1641501131234,19.03649999,3437.2,3437.1,2.45987062]
[1641501131433,19.43368199,3437.2,3437.1,2.45987062]
[1641501131835,19.81815399,3437.2,3437.1,2.45987062]
[1641501132035,19.81815399,3437.2,3436.9,1.8766758]
[1641501132235,1.45443799,3437.0,3436.9,1.8766758]
[1641501132435,14.80160199,3437.0,3436.9,1.8766758]
[1641501133437,2.31160199,3437.0,3436.9,1.8766758]
[1641501133636,14.80160199,3437.0,3436.9,0.61502031]
[1641501133836,2.31160199,3437.0,3436.1,4.46466062]
[1641501134036,1.45443799,3436.5,3436.1,4.46466062]
[1641501134239,0.397182,3437.0,3436.1,4.46466062]
[1641501134438,1.45443799,3436.9,3436.2,1.08850012]
[1641501134937,5.3614546,3437.2,3436.2,1.08850012]
[1641501135138,4.394052,3437.2,3436.3,2.45987062]
[1641501135639,5.84848999,3437.2,3436.3,2.45987062]
[1641501136440,5.84848999,3437.2,3436.6,1.84566315]
[1641501136742,6.24567199,3437.2,3436.6,1.84566315]
[1641501137345,1.45468993,3436.9,3436.6,1.84566315]
[1641501137743,0.459982,3436.8,3436.7,1.84566315]
[1641501137943,2.90912792,3436.9,3436.7,1.84566315]
[1641501138746,0.459982,3436.8,3436.7,1.84566315]
[1641501139548,0.857164,3436.8,3436.7,1.84566315]
[1641501140046,0.70747316,3436.8,3436.7,1.84566315]
[1641501140347,0.397182,3436.8,3436.7,1.84566315]
[1641501140547,0.397182,3436.8,3436.7,1.99535415]
[1641501140747,0.397182,3436.8,3436.7,0.149691]
[1641501140947,0.397182,3436.8,3436.6,1.84566315]
[1641501141349,1.91441999,3436.7,3436.6,1.84566315]
[1641501141548,1.45443799,3436.7,3436.6,1.99535415]
[1641501141748,1.45468993,3436.9,3436.6,1.99535415]
[1641501142149,1.45475282,3436.7,3436.6,1.99535415]
[1641501142951,1.45475282,3436.7,3436.6,0.149691]
[1641501143351,3.36917281,3436.7,3436.4,2.45987062]
[1641501143551,15.85917281,3436.7,3436.4,2.45987062]
[1641501143951,15.85917281,3436.7,3436.2,3.07483428]
[1641501143952,0.397182,3436.6,3436.5,2.45987062]
[1641501144152,2.57181999,3436.6,3436.5,2.45987062]
[1641501144653,15.06181999,3436.6,3436.5,2.45987062]
[1641501145252,19.455612,3436.6,3436.2,2.45987062]
[1641501145451,12.49,3436.2,3436.0,3.07483428]
[1641501145653,16.30160199,3436.1,3436.0,3.07483428]
[1641501145852,17.29664798,3436.1,3436.0,3.07483428]
[1641501146052,15.84161999,3436.1,3436.0,3.07483428]
[1641501146252,15.84161999,3436.1,3435.9,1.8766758]
[1641501146452,0.459982,3436.0,3435.9,0.61502031]
[1641501146654,0.459982,3436.0,3435.7,3.38596953]
[1641501146854,1.897182,3435.9,3435.3,3.07687902]
[1641501147152,3.45922799,3435.4,3435.3,3.07687902]
[1641501147355,16.40920999,3435.4,3435.3,3.07687902]
[1641501147553,17.19086399,3435.4,3435.3,3.07687902]
[1641501147753,21.58559051,3435.4,3435.3,3.07687902]
[1641501147953,21.58559051,3435.4,3435.0,3.38596953]
[1641501148153,1.45443799,3435.1,3435.0,3.38596953]
[1641501148354,15.57280199,3435.1,3434.7,0.61502031]
[1641501148554,4.34964881,3434.8,3434.7,0.61502031]
[1641501148955,3.85640999,3434.8,3434.7,0.61502031]
[1641501149154,17.84640999,3434.8,3434.7,0.61502031]
[1641501149356,21.20177974,3434.8,3434.6,3.38596953]
[1641501149553,0.384472,3434.7,3432.6,30.27964969]
[1641501149754,1.45443799,3434.1,3432.6,30.27964969]
[1641501149957,14.75943799,3434.1,3433.0,38.41368826]
[1641501150154,18.11522485,3434.1,3433.0,1.44624132]
[1641501150354,1.45443799,3433.1,3433.0,1.44624132]
[1641501150556,2.24153799,3433.1,3433.0,1.59593232]
[1641501151156,0.7871,3433.1,3433.0,1.59593232]
[1641501151558,2.62600999,3433.1,3433.0,1.59593232]
[1641501151855,1.171572,3433.1,3433.0,1.59593232]
[1641501152856,3.08599199,3433.1,3433.0,1.44624132]
[1641501153056,3.08599199,3433.1,3432.7,2.00479]
[1641501153255,1.631554,3433.1,3432.7,2.00479]
[1641501153459,2.028736,3433.1,3432.7,2.00479]
[1641501153957,1.45443799,3433.0,3432.7,2.00479]
[1641501154157,0.459982,3432.9,3432.7,2.00479]
[1641501154455,1.45443799,3432.8,3432.7,2.00479]
[1641501156859,0.384472,3433.1,3432.7,2.00479]
[1641501158260,1.83890999,3433.0,3432.7,2.00479]
[1641501158462,1.83890999,3433.0,3432.8,0.149691]
[1641501159263,1.45443799,3433.0,3432.8,0.149691]
[1641501160064,1.45443799,3432.9,3432.8,0.149691]
[1641501160269,2.66550999,3432.9,3432.8,0.149691]
[1641501161064,2.28103799,3432.9,3432.8,0.149691]
[1641501163471,14.9042734,3432.9,3432.3,2.00479]
[1641501163668,1.45443799,3432.6,3431.8,30.757]
[1641501163871,1.45443799,3432.0,3431.7,3.98829738]
[1641501164168,0.7995,3432.0,3431.8,0.149691]
[1641501164372,1.45443799,3431.9,3431.7,3.54159738]
[1641501164570,0.7995,3432.0,3431.7,3.54159738]
[1641501164969,0.7995,3432.0,3431.8,0.149691]
[1641501165169,1.45443799,3432.3,3431.8,0.149691]
[1641501165970,2.00479,3432.8,3432.2,0.87405796]
[1641501166170,2.00479,3432.8,3432.4,1.49996201]
[1641501166369,33.1929,3434.0,3432.2,0.87405796]
[1641501166370,33.29696779,3434.5,3432.7,2.37390268]
[1641501166572,2.89513922,3434.8,3432.7,2.38845112]
[1641501166771,1.5,3434.6,3432.7,0.88848911]
[1641501166972,0.56807733,3433.3,3433.1,2.00479]
[1641501167171,0.459982,3433.2,3432.4,1.14277185]
[1641501167370,0.56807733,3432.9,3432.7,0.89362621]
[1641501167670,0.56807733,3432.9,3432.1,5.462]
[1641501168170,0.56807733,3432.9,3432.7,0.01454903]
[1641501168371,0.56807733,3432.9,3432.3,0.01455113]
[1641501168572,0.56807733,3432.9,3432.1,5.462]
[1641501168772,0.8602,3433.3,3432.1,5.462]
[1641501168970,0.8602,3433.3,3432.2,0.01455136]
[1641501169173,0.8602,3433.3,3432.6,2.00479]
[1641501169773,0.56807733,3432.9,3432.6,2.00479]
[1641501169972,1.257382,3433.3,3432.6,2.00479]
[1641501170275,0.56807733,3432.7,3432.6,2.00479]
[1641501170474,0.781654,3433.2,3432.6,2.00479]
[1641501170874,0.56807733,3432.9,3432.6,2.00479]
[1641501171074,0.781654,3433.2,3432.7,0.149691]
[1641501171674,1.34973133,3433.2,3432.7,0.149691]
[1641501171976,0.781654,3433.2,3432.7,0.149691]
[1641501172575,0.781654,3433.2,3432.6,2.00479]
[1641501172775,1.528654,3433.2,3432.6,2.00479]
[1641501173576,0.56807733,3433.0,3432.6,2.00479]
[1641501173778,1.528654,3433.2,3432.6,2.00479]
[1641501173977,2.09673133,3433.2,3432.6,2.00479]
[1641501174378,1.69954933,3433.2,3432.6,2.00479]
[1641501174778,2.09673133,3433.2,3432.6,2.00479]
[1641501174980,0.56807733,3433.0,3432.6,2.00479]
[1641501175180,1.528654,3433.2,3432.6,2.00479]
[1641501175381,2.09673133,3433.2,3432.6,2.00479]
[1641501175781,1.528654,3433.2,3432.6,2.00479]
[1641501175981,0.56807733,3433.0,3432.6,2.00479]
[1641501176384,0.781654,3433.2,3432.6,2.00479]
[1641501176782,0.384472,3433.2,3432.6,2.00479]
[1641501176983,0.384472,3433.2,3432.7,0.87393228]
[1641501177183,1.45618061,3433.3,3433.0,2.00479]
[1641501177383,0.384472,3433.5,3433.0,2.68879]
[1641501177986,2.57286733,3433.8,3433.0,2.68879]
[1641501178185,1.45600978,3433.7,3433.0,2.68879]
[1641501178585,2.02408711,3433.7,3433.0,2.68879]
[1641501179283,1.45600978,3433.7,3433.0,2.68879]
[1641501179484,1.45600978,3433.7,3433.5,1.8109685]
[1641501179686,0.844454,3433.6,3433.5,1.8109685]
[1641501180284,1.41253133,3433.6,3433.5,1.8109685]
[1641501180485,0.95254933,3433.6,3433.5,1.9606595]
[1641501180690,1.41253133,3433.6,3433.5,1.8109685]
[1641501180886,0.844454,3433.6,3433.5,1.8109685]
[1641501181093,1.41253133,3433.6,3433.5,1.8109685]
[1641501181687,1.41253133,3433.6,3433.1,0.07697226]
[1641501181889,0.75353344,3433.6,3433.1,0.07697226]
[1641501182090,1.32161077,3433.6,3433.1,0.07697226]
[1641501183489,0.29355144,3433.6,3433.1,0.07697226]
[1641501184091,0.56807733,3433.2,3433.1,0.07697226]
[1641501184293,1.02805933,3433.2,3433.1,0.07697226]
[1641501184691,1.42524133,3433.2,3433.1,0.07697226]
[1641501185493,1.42524133,3433.2,3433.0,2.00479]
[1641501186294,1.5,3433.1,3432.6,2.00479]
[1641501186595,0.56807733,3432.7,3432.1,0.81514901]
[1641501186795,0.56807733,3432.2,3431.9,1.8109685]
[1641501186997,0.56807733,3432.0,3431.9,0.37143803]
[1641501187200,1.24257733,3432.0,3431.9,0.37143803]
[1641501187595,1.63975933,3432.0,3431.9,0.37143803]
[1641501187796,0.6745,3432.0,3431.9,0.52112903]
[1641501187996,2.00479,3432.9,3431.9,0.52112903]
[1641501188196,2.00479,3432.9,3431.9,1.32012903]
[1641501188596,2.00479,3432.9,3431.9,0.948691]
[1641501188796,2.00479,3432.9,3432.2,4.0]
[1641501189197,2.57286733,3432.9,3432.5,0.87399062]
[1641501189399,0.56807733,3432.6,3432.4,2.00479]
[1641501189697,0.56807733,3432.6,3432.5,0.149691]
[1641501189897,1.42524133,3432.6,3432.4,2.00479]
[1641501190299,0.96525933,3432.6,3432.4,2.00479]
[1641501190497,0.96525933,3432.6,3432.5,0.149691]
[1641501190799,0.56807733,3432.6,3432.5,0.149691]
[1641501191502,2.00479,3432.9,3432.5,1.381887]
[1641501192702,2.00479,3432.9,3432.6,0.07698895]
[1641501192903,0.459982,3432.8,3432.6,0.07698895]
[1641501193105,0.459982,3432.8,3432.6,0.22667995]
[1641501193605,1.02805933,3432.8,3432.6,0.07698895]
[1641501194203,2.48445626,3432.8,3432.6,0.07698895]
[1641501194403,0.397182,3432.7,3432.6,0.07698895]
[1641501194806,0.397182,3432.7,3432.5,1.232196]
[1641501195005,1.02805933,3432.6,3432.5,1.232196]
[1641501196706,15.01805933,3432.6,3431.9,1.21275406]
[1641501196907,0.56807733,3432.0,3431.9,1.21275406]
[1641501197105,1.15317733,3432.0,3431.9,1.21275406]
[1641501197306,1.99763133,3432.0,3431.9,1.21275406]
[1641501197505,2.39481333,3432.0,3431.9,1.21275406]
[1641501198707,2.39481333,3432.0,3431.9,1.28975744]
[1641501199217,2.09584015,3432.0,3431.9,1.28975744]
[1641501199811,1.25138615,3432.0,3431.9,1.43944844]
[1641501200011,0.85420415,3432.0,3431.9,1.43944844]
[1641501200615,1.31418615,3432.0,3431.9,1.28975744]
[1641501200813,1.71136815,3432.0,3431.9,1.28975744]
[1641501202614,1.25138615,3432.0,3431.9,1.43944844]
[1641501202813,1.31418615,3432.0,3431.9,1.28975744]
[1641501203215,1.31418615,3432.0,3431.9,1.42019131]
[1641501203416,0.85420415,3432.0,3431.9,1.42019131]
[1641501204417,1.31418615,3432.0,3431.9,1.56988231]
[1641501204618,0.85420415,3432.0,3431.9,1.42019131]
[1641501205019,0.26910415,3432.0,3431.9,1.42019131]
[1641501205219,2.00479,3432.5,3431.9,1.56988231]
[1641501205518,0.26910415,3432.3,3432.0,1.22074264]
[1641501205719,0.26910415,3432.5,3432.0,1.22074264]
[1641501206119,2.00479,3432.9,3432.0,2.45163849]
[1641501206318,2.00479,3432.9,3432.4,1.00132699]
[1641501206521,2.00479,3432.9,3432.5,0.090922]
[1641501206718,0.26910415,3433.1,3432.7,4.0]
[1641501206920,0.26910415,3433.9,3433.0,1.23089585]
[1641501207120,1.23650675,3434.4,3433.5,0.87372859]
[1641501207323,2.00479,3434.2,3433.5,0.7817]
[1641501207521,0.9674026,3434.7,3433.5,1.42982546]
[1641501207723,1.81927714,3434.7,3433.5,0.709]
[1641501207921,2.4674026,3434.7,3433.6,1.22074264]
[1641501208321,1.5,3434.1,3433.6,1.22074264]
[1641501208520,0.9674026,3434.7,3433.6,1.31166464]
[1641501208720,0.9674026,3434.7,3433.6,0.22135587]
[1641501208920,1.5,3433.8,3433.6,0.22135587]
[1641501209122,1.5,3433.8,3433.7,0.28012487]
[1641501209521,1.5,3433.8,3433.7,1.21084158]
[1641501210722,0.384472,3434.1,3433.7,1.21084158]
[1641501210922,1.884472,3434.1,3433.7,1.21084158]
[1641501211422,1.884472,3434.1,3433.9,2.00479]
[1641501211823,1.884472,3434.1,3434.0,0.28012487]
[1641501212422,0.384472,3434.1,3434.0,0.28012487]
[1641501214426,0.384472,3434.3,3434.0,0.28012487]
[1641501214924,0.384472,3434.3,3434.1,0.13043387]
[1641501214925,1.5,3434.2,3434.1,0.13043387]
[1641501215525,0.384472,3434.3,3434.1,0.13043387]
[1641501215725,0.384472,3434.3,3434.2,0.149691]
[1641501215924,1.884472,3434.3,3434.2,1.17370766]
[1641501216125,0.844454,3434.3,3434.2,1.30414153]
[1641501216525,1.5,3434.3,3434.2,1.30414153]
[1641501217025,1.959982,3434.3,3434.2,1.30414153]
[1641501221133,0.459982,3434.3,3434.2,1.30414153]
[1641501221334,1.5,3434.5,3434.2,1.45383253]
[1641501221534,1.5,3434.5,3434.2,1.54475453]
[1641501221735,2.00479,3434.9,3434.3,0.13043387]
[1641501221936,1.5,3434.4,3434.3,0.13043387]
[1641501222134,2.786444,3434.9,3434.3,0.13043387]
[1641501222334,1.5,3434.4,3434.3,0.13043387]
[1641501222734,1.5,3434.6,3434.3,0.13043387]
[1641501222934,2.786444,3434.9,3434.3,0.13043387]
[1641501223438,1.5,3434.6,3434.3,0.13043387]
[1641501223634,0.459982,3434.5,3434.3,0.13043387]
[1641501224035,1.5,3434.5,3434.3,0.13043387]
[1641501224438,1.45546121,3435.0,3434.4,0.149691]
[1641501224740,1.5,3435.9,3434.6,4.01454127]
[1641501225035,0.7824026,3435.8,3435.3,4.0]
[1641501225236,1.45255436,3436.3,3435.6,0.87320186]
[1641501225536,1.00547624,3436.3,3435.8,4.0]
[1641501225737,0.39192188,3436.3,3436.1,0.87308263]
[1641501225936,0.39192188,3436.3,3436.2,0.149691]
[1641501226837,1.20925325,3436.5,3436.2,0.149691]
[1641501227237,1.20925325,3436.5,3436.3,0.090922]
[1641501227438,1.20925325,3436.5,3436.4,1.22486866]
[1641501227738,1.5,3437.0,3436.4,3.22965866]
[1641501228138,1.5,3436.8,3436.4,3.22965866]
[1641501228337,1.5,3436.5,3436.4,3.22965866]
[1641501229239,2.357164,3436.5,3436.4,1.07517766]
[1641501229640,4.361954,3436.5,3436.4,1.07517766]
[1641501229838,4.361954,3436.5,3435.7,2.00479]
[1641501230038,2.861954,3436.5,3435.7,2.00479]
[1641501230239,1.5,3435.8,3435.7,2.83956691]
[1641501230438,1.5,3435.8,3435.7,2.98925791]
[1641501231339,2.344454,3435.8,3435.7,2.83956691]
[1641501231540,3.399236,3435.8,3435.7,2.83956691]
[1641501231739,3.399236,3435.8,3435.7,2.00479]
[1641501232541,2.1576,3435.8,3435.7,2.154481]
[1641501232742,1.959982,3435.8,3435.7,2.00479]
[1641501233442,1.959982,3435.8,3435.7,0.54961803]
[1641501233942,2.357164,3435.8,3435.7,0.54961803]
[1641501235144,2.357164,3435.8,3435.3,1.43796278]
[1641501235344,1.5,3435.4,3435.3,1.43796278]
[1641501235543,1.5,3435.4,3435.3,1.58765378]
[1641501235744,1.897182,3435.6,3435.3,1.58765378]
[1641501236644,1.5,3435.6,3435.3,1.58765378]
[1641501237445,0.857164,3435.5,3435.3,1.43796278]
[1641501237647,1.5,3435.4,3435.3,1.43796278]
[1641501238345,1.959982,3435.4,3435.3,1.43796278]
[1641501239346,0.459982,3435.4,3435.3,1.43796278]
[1641501239548,1.959982,3435.4,3435.3,1.43796278]
[1641501239751,0.459982,3435.4,3435.3,1.43796278]
[1641501239947,1.5,3435.4,3435.3,1.58765378]
[1641501240149,0.397182,3435.5,3435.3,1.58765378]
[1641501241348,0.397182,3435.5,3435.3,1.43796278]
[1641501241349,0.459982,3435.4,3435.3,1.43796278]
[1641501241549,0.397182,3435.5,3435.3,1.58765378]
[1641501242248,1.5,3435.4,3435.3,1.43796278]
[1641501242449,1.959982,3435.4,3435.3,1.43796278]
[1641501242648,0.459982,3435.4,3435.3,1.43796278]
[1641501242848,1.5,3435.4,3435.3,1.43796278]
[1641501243047,0.397182,3435.5,3435.3,1.43796278]
[1641501243653,0.857164,3435.5,3435.3,1.58765378]
[1641501243851,1.5,3435.4,3434.7,2.00479]
[1641501244050,0.857164,3435.5,3434.7,2.00479]
[1641501244051,1.5,3434.8,3434.7,2.00479]
[1641501244452,2.3525,3434.8,3434.7,2.00479]
[1641501244651,3.209664,3434.8,3434.7,2.00479]
[1641501245053,2.749682,3434.8,3434.7,2.154481]
[1641501245652,3.209664,3434.8,3434.7,2.00479]
[1641501245851,2.3525,3434.8,3434.7,2.00479]
[1641501246052,2.3525,3434.8,3434.7,2.154481]
[1641501246853,2.812482,3434.8,3434.7,2.00479]
[1641501247154,2.3525,3434.8,3434.7,2.154481]
[1641501247354,2.3525,3434.8,3434.7,2.00479]
[1641501247955,2.812482,3434.8,3434.7,2.00479]
[1641501248361,2.3525,3434.8,3434.7,2.154481]
[1641501248562,2.3525,3434.8,3434.7,2.00479]
[1641501248761,2.812482,3434.8,3434.7,2.00479]
[1641501250561,2.3525,3434.8,3434.7,2.00479]
[1641501250762,2.3525,3434.8,3434.7,2.154481]
[1641501251362,1.959982,3434.8,3434.7,2.00479]
[1641501252064,1.5,3434.8,3434.7,2.154481]
[1641501252464,1.5,3434.8,3434.7,3.23225305]
[1641501252865,1.5,3435.1,3434.7,3.23225305]
[1641501253065,2.91078446,3435.2,3435.0,4.0]
[1641501253265,2.00479,3435.7,3435.1,0.149691]
[1641501253465,1.5,3436.5,3435.3,1.9240576]
[1641501253666,1.5,3436.5,3435.6,4.0]
[1641501253865,2.00479,3436.3,3436.1,1.92064249]
[1641501254065,2.00479,3436.3,3436.2,0.149691]
[1641501254469,1.5,3436.5,3436.2,5.36113688]
[1641501254668,0.96084599,3436.9,3436.5,1.92337641]
[1641501254869,0.96084599,3436.9,3436.8,4.0]
[1641501255068,4.599e-05,3436.9,3436.8,4.683491]
[1641501255271,1.44139708,3437.4,3437.1,0.73363623]
[1641501255467,1.44139708,3437.4,3437.2,0.090922]
[1641501255668,1.5,3438.1,3437.2,4.745805]
[1641501255669,0.95655714,3438.0,3437.2,4.745805]
[1641501255866,2.00479,3437.3,3437.2,4.745805]
[1641501256067,0.95655714,3438.0,3437.2,4.895496]
[1641501256468,0.95655714,3438.0,3437.4,4.0]
[1641501257068,1.5,3438.1,3437.4,4.0]
[1641501257270,1.5,3438.1,3437.5,4.654274]
[1641501257468,1.5,3438.1,3437.5,5.350374]
[1641501257669,1.5,3437.6,3437.5,0.6961]
[1641501257872,1.5,3437.6,3437.5,0.845791]
[1641501258067,1.959982,3437.6,3437.5,0.6961]
[1641501258268,1.5,3437.6,3437.5,0.6961]
[1641501258469,1.5,3437.6,3437.2,1.44839767]
[1641501260374,1.897182,3437.6,3437.2,1.35747567]
[1641501260571,1.5,3437.3,3437.2,1.35747567]
[1641501260772,1.959982,3437.3,3437.2,1.35747567]
[1641501261473,2.357164,3437.3,3437.2,1.35747567]
[1641501261672,3.857164,3437.3,3436.7,0.85729701]
[1641501261872,3.50479,3436.8,3436.7,0.85729701]
[1641501262073,5.307826,3436.8,3436.7,0.85729701]
[1641501262272,6.807826,3436.8,3435.8,2.00479]
[1641501262474,5.307826,3436.8,3435.8,2.00479]
[1641501262673,1.5,3435.9,3435.8,2.00479]
[1641501262876,2.3815,3435.9,3435.8,2.154481]
[1641501263476,2.841482,3435.9,3435.7,0.090922]
[1641501263675,2.841482,3435.9,3435.5,0.01453721]
[1641501263875,2.841482,3435.9,3435.1,0.4278]
[1641501264076,3.50479,3435.7,3435.1,0.4278]
[1641501264274,1.5,3435.5,3435.1,0.4278]
[1641501264475,1.5,3435.5,3435.1,2.25325447]
[1641501264678,1.5,3435.5,3435.2,0.76874619]
[1641501265078,1.5,3435.5,3435.3,0.149691]
[1641501265278,2.00479,3435.7,3435.3,0.149691]
[1641501266682,2.00479,3435.7,3435.4,0.20393714]
[1641501267080,2.00479,3435.7,3435.5,0.149691]
[1641501267580,2.00479,3435.7,3435.5,4.149691]
[1641501268380,2.00479,3435.7,3435.5,0.149691]
[1641501268782,2.00479,3435.7,3435.6,0.20393714]
[1641501270482,2.464772,3435.7,3435.6,0.20393714]
[1641501270685,2.861954,3435.7,3435.6,0.33449477]
[1641501270881,2.861954,3435.7,3435.6,0.20393714]
[1641501271481,2.00479,3435.7,3435.6,0.35362814]
[1641501271683,2.00479,3436.0,3435.6,2.35473493]
[1641501271882,0.96896473,3436.1,3435.6,2.36927182]
[1641501272084,0.25146087,3436.4,3436.0,0.01453501]
[1641501272283,0.25146087,3436.4,3436.1,0.090922]
[1641501272484,0.25146087,3436.4,3436.2,4.149691]
[1641501272685,3.50479,3436.6,3436.2,4.149691]
[1641501272888,2.00479,3436.6,3436.3,4.65617]
[1641501273086,2.00479,3436.6,3436.2,1.12441533]
[1641501273087,1.5,3436.4,3436.2,1.12441533]
[1641501273988,0.397182,3436.5,3436.2,1.12441533]
[1641501275089,0.397182,3436.5,3436.3,0.20393714]
[1641501275290,2.00479,3436.6,3436.4,0.149691]
[1641501276191,2.00479,3436.6,3436.5,0.20393714]
[1641501277491,2.464772,3436.6,3436.5,0.20393714]
[1641501279193,2.00479,3436.6,3436.5,0.35362814]
[1641501279594,2.00479,3436.6,3436.5,0.20393714]
[1641501280193,2.00479,3436.6,3436.5,0.35362814]
[1641501280598,2.464772,3436.6,3436.5,0.20393714]
[1641501280797,3.964772,3436.6,3436.5,0.20393714]
[1641501281000,4.361954,3436.6,3436.5,0.20393714]
[1641501282900,4.82354424,3436.6,3436.3,0.20393714]
[1641501283300,1.5,3436.4,3436.3,0.20393714]
[1641501283701,2.357164,3436.4,3436.3,0.20393714]
[1641501283902,2.357164,3436.4,3436.2,1.12441533]
[1641501284102,2.357164,3436.4,3436.2,1.86236249]
[1641501285103,0.46159024,3436.3,3436.2,1.86236249]
[1641501286304,0.46159024,3436.3,3436.2,2.07834788]
[1641501287005,0.46159024,3436.3,3436.2,1.34040072]
[1641501287705,1.96159024,3436.3,3436.2,1.34040072]
[1641501287904,14.45159024,3436.3,3435.7,1.42978801]
[1641501288105,3.50479,3435.8,3435.7,1.42978801]
[1641501288304,3.964772,3435.8,3435.7,1.42978801]
[1641501288504,4.349244,3435.8,3435.7,1.42978801]
[1641501288706,4.746426,3435.8,3435.7,1.42978801]
[1641501290106,4.286444,3435.8,3435.7,1.57947901]
[1641501290307,4.746426,3435.8,3435.7,1.42978801]
[1641501290707,5.283726,3435.8,3435.7,1.42978801]
[1641501291312,0.02538396,3435.7,3435.0,2.88216864]
[1641501291509,0.397182,3435.6,3435.0,2.88216864]
[1641501291710,1.5,3435.1,3435.0,2.88216864]
[1641501291910,2.881254,3435.1,3434.9,2.00479]